bitfinex-derivatives/quotes_ETHF0:USTF0_20241023
["timestamp","ask_amount","ask_price","bid_price","bid_amount"]
[1729722708385,0.3993,2506.6,2506.4,3.6071]
[1729722708573,7.5535,2506.8,2506.4,3.6071]
[1729722708574,0.3993,2506.5,2506.4,3.6071]
[1729722709272,0.3993,2506.5,2506.4,3.2078]
[1729722709473,7.92436711,2506.8,2506.4,3.6071]
[1729722710073,0.3993,2506.5,2506.4,3.6071]
[1729722710277,0.3993,2506.5,2506.4,0.3993]
[1729722710585,0.39929,2506.6,2506.4,0.3993]
[1729722710977,7.92436711,2506.8,2506.3,4.7374]
[1729722711177,0.39929,2506.6,2506.4,0.39931]
[1729722711580,0.3993,2506.5,2506.4,0.39931]
[1729722711879,0.39931,2506.4,2506.3,3.2078]
[1729722712086,1.75571,2506.4,2506.3,3.2078]
[1729722712280,10.31006247,2506.4,2506.3,3.2078]
[1729722714174,9.91075247,2506.4,2505.7,9.57496418]
[1729722714380,9.91075247,2506.4,2505.7,0.39942]
[1729722714381,3.5194,2505.9,2505.7,0.39942]
[1729722714577,0.9194,2505.8,2505.7,0.39942]
[1729722714884,5.34426738,2505.8,2505.7,0.39942]
[1729722715984,3.60713,2506.3,2505.7,7.199]
[1729722716281,5.23183282,2506.2,2506.0,0.39937]
[1729722719675,5.23183282,2506.2,2505.8,0.39941]
[1729722719877,5.23183282,2506.2,2505.7,3.6628]
[1729722720287,4.34093282,2506.2,2506.1,0.39936]
[1729722720484,3.2078,2506.6,2505.9,3.12]
[1729722720485,0.3993,2506.5,2505.9,3.12]
[1729722720680,0.39933,2506.3,2506.0,0.39938]
[1729722720874,0.39933,2506.3,2505.9,1.5366]
[1729722720875,4.5798533,2506.5,2506.3,0.39932]
[1729722721177,0.39932,2506.4,2506.1,0.39935]
[1729722721479,0.39931,2506.4,2506.2,0.39934]
[1729722721881,0.4392,2506.3,2505.9,1.9705]
[1729722722187,0.83853,2506.3,2506.0,0.39937]
[1729722722984,0.83853,2506.3,2505.9,1.9705]
[1729722723174,0.83853,2506.3,2506.1,0.39936]
[1729722724886,4.18773812,2506.2,2506.1,0.39936]
[1729722725882,4.18773812,2506.2,2505.9,0.8845]
[1729722726083,0.4448,2506.1,2506.0,0.39937]
[1729722726482,4.18773812,2506.2,2506.1,0.39936]
[1729722728890,4.58709812,2506.2,2506.0,3.60717]
[1729722729087,0.86806,2506.1,2506.0,3.2078]
[1729722729286,1.29756,2506.1,2506.0,3.2078]
[1729722729485,5.15110246,2506.1,2505.7,3.2078]
[1729722729785,5.15110246,2506.1,2505.5,0.4296]
[1729722729786,3.12,2505.9,2505.5,0.4296]
[1729722729986,0.39946,2505.5,2505.4,3.2078]
[1729722730189,0.39946,2505.5,2505.4,3.60727]
[1729722730392,3.12,2505.7,2505.4,3.60727]
[1729722730393,0.82885,2505.6,2505.4,3.60727]
[1729722730684,0.4607,2505.5,2505.4,3.60727]
[1729722731189,0.86016,2505.5,2505.4,3.60727]
[1729722731690,0.4607,2505.5,2505.4,3.60727]
[1729722731886,0.86016,2505.5,2505.4,3.60727]
[1729722732185,0.4607,2505.5,2505.4,3.60727]
[1729722732384,0.86016,2505.5,2505.4,3.60727]
[1729722732584,0.4607,2505.5,2505.4,3.60727]
[1729722733289,0.4607,2505.5,2505.4,0.39947]
[1729722736088,0.86016,2505.5,2505.4,0.39947]
[1729722736288,0.4607,2505.5,2505.4,0.39947]
[1729722739599,0.82885,2505.6,2505.5,0.39946]
[1729722739996,5.15640083,2505.6,2505.5,0.39946]
[1729722743702,4.75695083,2505.6,2505.5,0.39946]
[1729722747599,5.18255083,2505.6,2505.5,0.39946]
[1729722747997,4.32755083,2505.6,2505.5,0.39946]
[1729722748796,4.72699083,2505.6,2505.5,0.39946]
[1729722749301,4.32755083,2505.6,2505.5,0.39946]
[1729722752297,4.72699083,2505.6,2505.5,0.39946]
[1729722752806,0.39946,2505.5,2505.4,3.60726]
[1729722753006,0.39946,2505.5,2505.4,3.73219128]
[1729722753412,4.72699083,2505.6,2505.5,0.39946]
[1729722754400,4.72699083,2505.6,2505.5,0.52438948]
[1729722754802,4.32755083,2505.6,2505.5,0.52438948]
[1729722756011,4.32755083,2505.6,2505.5,0.39946]
[1729722756204,4.32755083,2505.6,2505.5,0.52438718]
[1729722758512,5.76755083,2505.6,2505.5,0.52438718]
[1729722759629,6.16699083,2505.6,2505.5,0.39946]
[1729722759815,6.16699083,2505.6,2505.5,0.52438915]
[1729722759816,5.76755083,2505.6,2505.5,0.52438915]
[1729722760002,5.76755083,2505.6,2505.5,0.52438883]
[1729722760205,5.76755083,2505.6,2505.5,0.39946]
[1729722762810,4.32755083,2505.6,2505.5,0.39946]
[1729722763011,1.9018,2505.7,2505.6,0.39944]
[1729722763211,1.9018,2505.7,2505.6,4.50414]
[1729722765113,0.4418,2505.8,2505.7,0.39942]
[1729722765416,2.3222,2506.2,2506.1,0.39936]
[1729722765919,7.06844622,2506.2,2506.0,0.82836]
[1729722766213,1.44,2506.1,2506.0,0.82836]
[1729722766416,5.62844622,2506.2,2506.0,0.82836]
[1729722766718,1.28155,2506.2,2506.0,0.429]
[1729722766918,4.47689946,2506.1,2506.0,0.82838]
[1729722767815,4.47689946,2506.1,2506.0,4.81878]
[1729722768011,4.139,2507.2,2506.0,7.9779]
[1729722768212,0.9343,2507.1,2507.0,0.39922]
[1729722768426,0.9343,2507.1,2506.9,0.39922]
[1729722768427,5.52219226,2507.1,2506.9,0.39922]
[1729722768612,5.52219226,2507.1,2506.8,0.39925]
[1729722768817,5.52219226,2507.1,2507.0,0.39922]
[1729722769017,3.652,2507.4,2506.7,4.0975]
[1729722769018,6.3278,2507.4,2506.7,4.0975]
[1729722769218,6.72696,2507.4,2507.1,0.39919]
[1729722769515,4.72955395,2507.3,2507.1,0.39919]
[1729722770317,5.12872395,2507.3,2506.7,4.0975]
[1729722770511,4.72955395,2507.3,2506.7,4.0975]
[1729722770719,4.72955395,2507.3,2507.2,0.39919]
[1729722770920,3.2078,2507.7,2507.0,3.2078]
[1729722770921,3.51913,2507.6,2507.0,3.2078]
[1729722771120,3.12,2507.6,2507.2,0.39917]
[1729722771326,0.39914,2507.5,2507.2,0.39917]
[1729722771724,0.39914,2507.5,2507.3,0.39917]
[1729722772322,8.13009272,2507.6,2507.3,0.39917]
[1729722772819,0.39914,2507.5,2507.3,0.39917]
[1729722773419,7.73096272,2507.6,2507.1,1.078]
[1729722773620,4.66606751,2507.4,2507.1,1.47719]
[1729722773816,3.51916,2507.4,2507.1,1.47719]
[1729722774020,0.4278,2507.3,2507.1,1.47719]
[1729722774222,4.89747459,2507.3,2507.1,0.39919]
[1729722774421,4.89747459,2507.3,2507.0,4.2358]
[1729722774623,3.12,2507.2,2506.7,4.0975]
[1729722774822,3.9581,2507.2,2506.9,0.39922]
[1729722775024,4.46967459,2507.1,2506.9,0.39922]
[1729722776522,4.86887459,2507.1,2506.9,0.39922]
[1729722776724,4.86887459,2507.1,2506.8,0.39924]
[1729722777224,4.46967459,2507.1,2506.7,4.0975]
[1729722777430,3.51924,2506.9,2506.6,1.028]
[1729722777622,3.51924,2506.9,2506.7,0.39926]
[1729722777825,4.4019138,2506.8,2506.7,0.39926]
[1729722778324,4.4019138,2506.8,2506.6,0.39927]
[1729722779321,4.4019138,2506.8,2506.7,0.39926]
[1729722779918,0.4278,2507.3,2506.7,0.39926]
[1729722779919,3.2078,2507.4,2506.7,10.71666]
[1729722780221,0.39918,2507.3,2507.0,0.39921]
[1729722780422,0.39918,2507.3,2507.1,0.3992]
[1729722780623,0.39916,2507.4,2507.1,0.3992]
[1729722780933,4.55836375,2507.4,2507.1,0.3992]
[1729722781130,4.15920375,2507.4,2507.0,1.028]
[1729722781428,4.55836375,2507.4,2507.2,0.39918]
[1729722782022,4.15920375,2507.4,2507.3,0.39917]
[1729722782217,4.5639,2507.7,2507.6,0.39912]
[1729722782218,4.1042,2507.7,2507.6,0.39912]
[1729722783127,3.12,2507.9,2507.4,0.4267]
[1729722783431,3.12,2507.9,2507.6,0.39911]
[1729722783432,4.35865687,2507.7,2507.6,0.39911]
[1729722783630,4.35865687,2507.7,2507.5,1.4935]
[1729722783830,3.12,2507.9,2507.5,1.4935]
[1729722784030,0.3991,2507.8,2507.6,0.39912]
[1729722784233,4.87273619,2507.8,2507.6,0.39912]
[1729722786231,4.47363619,2507.8,2507.7,0.39911]
[1729722786436,0.39908,2507.9,2507.7,0.39911]
[1729722786634,0.39907,2508.0,2507.8,0.39909]
[1729722786839,4.43257283,2507.9,2507.8,0.39909]
[1729722787134,0.39907,2508.0,2507.7,0.3991]
[1729722787325,4.0435,2508.1,2507.7,0.3991]
[1729722787523,4.58823428,2507.9,2507.6,3.2078]
[1729722787729,4.58823428,2508.0,2507.9,0.39907]
[1729722787935,0.4573,2508.1,2507.6,7.3256]
[1729722788232,4.05502,2508.3,2508.1,0.39903]
[1729722788233,3.60682,2508.3,2508.1,0.39903]
[1729722788740,4.58720684,2508.2,2508.0,0.39905]
[1729722790033,4.18817684,2508.2,2507.7,0.99776]
[1729722790340,4.18817684,2508.2,2508.1,0.39904]
[1729722790536,0.4501,2508.4,2508.3,0.39901]
[1729722790836,3.2078,2508.6,2508.5,0.39898]
[1729722791031,3.60672,2508.9,2508.3,6.3278]
[1729722791227,3.60672,2508.9,2508.6,0.39895]
[1729722791423,3.60672,2508.9,2508.6,0.39896]
[1729722791424,4.49536215,2508.7,2508.6,0.39896]
[1729722791624,0.39896,2508.6,2508.4,1.87289]
[1729722791936,4.89431215,2508.7,2508.4,1.87289]
[1729722792325,0.39895,2508.7,2508.4,1.87289]
[1729722794237,3.5439,2508.8,2508.5,0.39897]
[1729722794431,0.39896,2508.6,2508.4,1.87289]
[1729722795630,0.39896,2508.6,2508.3,3.2078]
[1729722795631,0.39902,2508.3,2508.1,0.86363]
[1729722795836,4.23729181,2508.5,2508.0,3.2078]
[1729722795837,3.12,2508.4,2508.0,3.2078]
[1729722796033,0.39904,2508.1,2508.0,3.2078]
[1729722796531,4.96500538,2508.1,2508.0,3.2078]
[1729722799732,4.76496001,2508.1,2508.0,3.2078]
[1729722800636,4.76496001,2508.1,2507.8,4.63388]
[1729722801425,4.76496001,2508.1,2507.8,4.2348]
[1729722801630,4.76496001,2508.1,2507.9,0.39907]
[1729722802437,4.36592001,2508.1,2508.0,0.39906]
[1729722802633,4.20506,2509.0,2508.4,0.39899]
[1729722802931,4.21561584,2508.7,2508.6,0.39895]
[1729722803131,4.21561584,2508.7,2508.5,0.9296]
[1729722803132,4.61457584,2508.7,2508.5,0.9296]
[1729722803337,0.39896,2508.7,2508.5,1.32858]
[1729722803633,0.8731,2508.9,2508.5,4.53638]
[1729722803935,4.77480904,2508.8,2508.6,0.39896]
[1729722804338,4.37586904,2508.8,2508.7,0.39895]
[1729722804640,0.8731,2508.9,2508.5,4.1374]
[1729722804838,0.39893,2508.8,2508.5,3.6747]
[1729722805036,0.8731,2508.9,2508.5,3.6747]
[1729722805336,0.8731,2508.9,2508.8,0.39893]
[1729722807534,0.39887,2509.2,2508.6,4.1174]
[1729722807738,0.39887,2509.2,2509.0,0.39889]
[1729722807945,4.60751716,2509.1,2508.8,0.39893]
[1729722808234,4.60751716,2509.1,2508.7,0.4388]
[1729722808439,4.60751716,2509.1,2508.9,0.39891]
[1729722808944,4.20862716,2509.1,2508.7,0.4388]
[1729722809337,4.60751716,2509.1,2508.9,0.39891]
[1729722809641,0.3989,2509.0,2508.8,0.39892]
[1729722810143,4.60751716,2509.1,2508.8,0.39892]
[1729722810440,4.20862716,2509.1,2508.7,0.4388]
[1729722810740,0.39894,2508.8,2508.5,4.07367]
[1729722810933,0.4787,2509.0,2508.5,4.7247]
[1729722811240,0.39893,2508.9,2508.6,0.39895]
[1729722811436,4.84765,2509.0,2508.6,0.39895]
[1729722811630,4.36895,2508.8,2508.7,0.39895]
[1729722811837,4.76787,2508.9,2508.7,0.39895]
[1729722812236,0.39892,2508.9,2508.7,0.39895]
[1729722812543,4.27520123,2508.8,2508.7,0.39895]
[1729722813237,0.4787,2509.0,2508.7,3.9864]
[1729722813440,0.4787,2509.0,2508.5,4.7247]
[1729722813441,0.39893,2508.8,2508.6,0.39895]
[1729722813837,0.39893,2508.8,2508.6,4.38535]
[1729722814032,0.39893,2508.8,2508.6,3.9864]
[1729722814240,0.39892,2508.9,2508.7,0.39894]
[1729722815141,0.4787,2509.0,2508.5,4.7247]
[1729722815346,4.92358118,2508.8,2508.6,1.44896]
[1729722815639,4.92356118,2508.9,2508.7,0.39894]
[1729722815844,0.39892,2508.9,2508.7,0.39894]
[1729722816233,0.39889,2509.1,2508.9,0.39891]
[1729722816435,0.39887,2509.2,2509.0,0.39888]
[1729722816639,0.39887,2509.2,2509.0,0.87908]
[1729722818343,0.9098,2509.3,2509.0,0.87908]
[1729722818647,0.39888,2509.2,2509.0,0.87908]
[1729722819344,0.39888,2509.2,2509.0,4.08688]
[1729722819948,0.4278,2509.3,2509.2,0.39887]
[1729722820138,1.47764,2509.8,2509.2,1.05]
[1729722820139,0.4505,2509.6,2509.2,1.05]
[1729722820339,0.84931,2509.6,2509.4,0.39883]
[1729722821240,0.4505,2509.6,2509.5,0.39882]
[1729722822742,0.82778,2509.8,2509.5,0.39882]
[1729722822943,1.28748,2509.8,2509.6,0.3988]
[1729722823151,1.28748,2509.8,2509.3,6.7407]
[1729722823152,4.76313903,2509.7,2509.5,0.39881]
[1729722823651,4.76313903,2509.7,2509.3,6.7407]
[1729722823952,7.48434903,2509.7,2509.3,3.2078]
[1729722824138,0.39885,2509.3,2509.2,1.05]
[1729722824343,0.39887,2509.2,2509.0,0.3989]
[1729722824645,4.50172556,2509.1,2508.9,3.60671]
[1729722824844,4.50172556,2509.1,2508.9,3.2078]
[1729722825146,4.50172556,2509.1,2508.9,3.60671]
[1729722825147,4.50173556,2509.1,2508.9,3.60671]
[1729722825348,4.10284556,2509.1,2508.9,3.2078]
[1729722825546,0.3989,2509.0,2508.9,3.2078]
[1729722825847,0.3989,2509.0,2508.9,3.60671]
[1729722826050,0.3989,2509.0,2508.9,3.2078]
[1729722826349,0.3989,2509.0,2508.9,3.60671]
[1729722827355,0.3989,2509.0,2508.9,3.2078]
[1729722827847,9.3353099,2509.0,2508.9,3.2078]
[1729722828644,8.9364099,2509.0,2508.6,1.13]
[1729722828845,0.39895,2508.7,2508.5,3.60677]
[1729722829045,0.39895,2508.7,2508.5,4.73677]
[1729722829353,0.39894,2508.8,2508.6,0.39896]
[1729722829553,0.4308,2508.7,2508.6,0.39896]
[1729722830050,0.4308,2508.7,2508.5,4.73677]
[1729722830249,0.4308,2508.7,2508.5,1.13]
[1729722830448,0.4308,2508.7,2508.6,0.39896]
[1729722832347,3.60666,2509.3,2509.1,0.39887]
[1729722832549,4.00546,2509.3,2509.1,0.39887]
[1729722834646,0.39888,2509.2,2508.9,3.6067]
[1729722834851,0.39889,2509.1,2508.9,3.6067]
[1729722835357,0.3989,2509.0,2508.8,0.80552]
[1729722835552,3.2078,2509.6,2508.9,3.9856]
[1729722835858,0.39875,2510.0,2509.4,6.3278]
[1729722836049,1.2319,2510.3,2509.4,6.3278]
[1729722836050,1.2319,2510.3,2509.8,3.2078]
[1729722836358,0.39873,2510.1,2509.8,3.2078]
[1729722836655,0.39873,2510.1,2509.8,3.60657]
[1729722838948,4.14569096,2510.2,2509.8,3.2078]
[1729722839151,0.39875,2510.0,2509.8,3.2078]
[1729722839351,4.64946438,2510.0,2509.7,1.52879]
[1729722839559,0.39875,2510.0,2509.7,1.52879]
[1729722839754,1.2294,2510.3,2510.0,0.39873]
[1729722839959,1.2294,2510.3,2509.9,0.39874]
[1729722839960,0.39871,2510.2,2509.9,0.39874]
[1729722840258,4.25071438,2510.2,2510.0,0.39874]
[1729722840456,4.25071438,2510.2,2509.8,0.39876]
[1729722840755,4.64943438,2510.2,2509.9,0.39875]
[1729722840954,4.25071438,2510.2,2509.7,4.3378]
[1729722841154,4.25071438,2510.2,2510.0,0.39873]
[1729722841955,4.64942438,2510.2,2509.9,0.39874]
[1729722842356,4.64942438,2510.2,2510.0,0.39874]
[1729722842756,4.64942438,2510.2,2509.7,4.3378]
[1729722842757,4.64942438,2510.2,2509.9,0.39874]
[1729722842962,4.64942438,2510.2,2509.7,4.3378]
[1729722843360,4.25071438,2510.2,2509.7,4.3378]
[1729722843752,4.25071438,2510.2,2509.5,0.8494]
[1729722843951,0.39875,2510.0,2509.7,0.39878]
[1729722844147,0.3979,2509.9,2509.7,0.39878]
[1729722844346,0.4369,2509.8,2509.7,0.39878]
[1729722844561,0.8684,2509.8,2509.7,0.39878]
[1729722847155,0.39881,2509.6,2509.3,0.39885]
[1729722847357,5.41893912,2509.8,2509.2,6.3278]
[1729722847552,0.39879,2509.7,2509.5,0.39882]
[1729722847865,0.39879,2509.7,2509.4,1.13]
[1729722847866,4.94932912,2509.7,2509.4,1.52882]
[1729722848660,4.94932912,2509.7,2509.5,0.39882]
[1729722848859,4.94933912,2509.7,2509.4,1.52882]
[1729722849052,4.94933912,2509.7,2509.4,1.13]
[1729722849257,4.94933912,2509.7,2509.5,0.39882]
[1729722850760,4.94933912,2509.7,2509.4,1.13]
[1729722851250,4.94933912,2509.7,2509.5,0.39882]
[1729722852561,0.39882,2509.5,2509.4,1.13]
[1729722852761,0.39885,2509.3,2509.2,4.3378]
[1729722852965,0.39885,2509.3,2509.2,3.2078]
[1729722853159,4.56672837,2509.3,2509.2,3.2078]
[1729722853359,4.99372837,2509.3,2509.2,3.2078]
[1729722854262,8.97932837,2509.3,2509.2,3.2078]
[1729722854754,11.70047837,2509.3,2508.9,3.2078]
[1729722854955,0.39889,2509.1,2508.9,3.60671]
[1729722855356,4.66990013,2509.0,2508.9,3.60671]
[1729722855763,5.06880013,2509.0,2508.9,3.2078]
[1729722860574,4.24540013,2509.0,2508.9,3.60671]
[1729722860863,3.2078,2509.7,2509.1,0.99721]
[1729722861069,1.6215,2509.7,2509.4,0.39882]
[1729722861258,4.1830965,2509.6,2509.4,0.39882]
[1729722861460,4.5819065,2509.6,2509.4,0.39882]
[1729722861660,4.1830965,2509.6,2509.3,0.39885]
[1729722861965,4.1830965,2509.6,2509.5,0.39882]
[1729722862166,4.5818965,2509.6,2509.4,0.39883]
[1729722862961,0.39879,2509.7,2509.5,0.39881]
[1729722863359,0.39878,2509.8,2509.5,0.39881]
[1729722863566,0.39878,2509.8,2509.6,0.3988]
[1729722863760,4.58999916,2509.9,2509.5,0.39881]
[1729722863962,0.39879,2509.8,2509.6,0.3988]
[1729722865668,4.58999916,2509.9,2509.4,3.12]
[1729722865972,4.58999916,2509.9,2509.5,0.39881]
[1729722866170,0.39879,2509.7,2509.5,0.39881]
[1729722866565,4.58999916,2509.9,2509.4,3.2078]
[1729722866763,4.58999916,2509.9,2509.6,0.39879]
[1729722867167,0.39877,2509.8,2509.6,0.39879]
[1729722867578,4.58999916,2509.9,2509.4,3.2078]
[1729722867579,4.98875916,2509.9,2509.7,0.39879]
[1729722867768,0.39877,2509.8,2509.6,0.39879]
[1729722867965,0.39877,2509.8,2509.7,0.3974]
[1729722869274,4.98875916,2509.9,2509.7,0.79618]
[1729722869660,4.58999916,2509.9,2509.8,0.4128]
[1729722869865,4.58999916,2509.9,2509.8,0.81157]
[1729722871066,4.58999916,2509.9,2509.8,0.4128]
[1729722871270,4.98875916,2509.9,2509.8,0.4128]
[1729722872469,4.58999916,2509.9,2509.7,0.3974]
[1729722872671,0.39877,2509.8,2509.6,1.52979]
[1729722872975,1.66577,2509.8,2509.6,1.52979]
[1729722873178,1.267,2509.8,2509.5,3.6362]
[1729722873481,0.3988,2509.6,2509.4,1.52983]
[1729722873769,4.21751546,2509.7,2509.3,0.8105]
[1729722873976,0.39881,2509.6,2509.4,1.52983]
[1729722874172,0.3988,2509.6,2509.4,1.52983]
[1729722874375,0.3988,2509.6,2509.4,0.39883]
[1729722878587,0.39884,2509.4,2509.3,1.9415]
[1729722878871,4.21751546,2509.7,2509.3,2.34034]
[1729722879069,0.39883,2509.5,2509.3,2.34034]
[1729722879669,0.39884,2509.4,2509.3,2.34034]
[1729722879972,0.39885,2509.3,2509.2,3.2078]
[1729722880279,0.99703,2509.6,2509.1,1.131]
[1729722880280,4.25595306,2509.4,2509.1,1.131]
[1729722880472,5.68656268,2509.3,2509.1,1.52987]
[1729722880673,1.21156,2509.3,2509.1,1.52987]
[1729722880881,4.47500268,2509.2,2509.1,1.52987]
[1729722889282,4.47500268,2509.2,2509.1,1.25574651]
[1729722889283,4.87387268,2509.2,2509.1,1.25574651]
[1729722889481,4.87387268,2509.2,2509.1,1.131]
[1729722889685,4.87387268,2509.2,2509.1,1.65462571]
[1729722890202,4.87387268,2509.2,2509.1,1.52988]
[1729722890483,4.87387268,2509.2,2509.1,1.131]
[1729722891080,4.87387268,2509.2,2509.1,1.52988]
[1729722891280,4.87387268,2509.2,2509.1,1.131]
[1729722891686,4.87387268,2509.2,2509.1,1.52988]
[1729722895288,4.87387268,2509.2,2509.1,1.131]
[1729722899100,4.87387268,2509.2,2509.1,1.52988]
[1729722900898,4.87387268,2509.2,2508.9,4.0171]
[1729722900899,4.47500268,2509.2,2508.9,4.0171]
[1729722901089,0.3989,2509.0,2508.9,3.2078]
[1729722901498,0.8134,2509.0,2508.9,3.2078]
[1729722901705,1.39622,2508.9,2508.6,1.086]
[1729722902003,4.40880775,2508.8,2508.6,1.086]
[1729722902199,4.40880775,2508.8,2508.5,3.2078]
[1729722902391,0.39895,2508.7,2508.6,1.96372754]
[1729722904002,0.39895,2508.7,2508.6,1.56477754]
[1729722904204,0.39895,2508.7,2508.6,1.96373754]
[1729722904396,0.39895,2508.7,2508.6,0.12477754]
[1729722904598,0.39896,2508.6,2508.5,3.60677]
[1729722904800,0.83256,2508.6,2508.5,4.81754273]
[1729722905301,0.4336,2508.6,2508.5,4.81754273]
[1729722905605,0.83256,2508.6,2508.5,4.69277]
[1729722905809,0.4336,2508.6,2508.5,4.81754339]
[1729722906100,0.83256,2508.6,2508.5,3.2078]
[1729722906407,6.13682268,2508.6,2508.5,3.2078]
[1729722908703,0.39898,2508.5,2508.4,3.2078]
[1729722909103,0.39898,2508.5,2508.4,3.60679]
[1729722917708,0.39898,2508.5,2508.4,0.39899]
[1729722917911,0.39898,2508.5,2508.4,3.60679]
[1729722918509,3.2078,2509.0,2508.4,10.3042]
[1729722918713,0.8473,2509.1,2508.7,3.2078]
[1729722918910,0.8473,2509.1,2509.0,0.3989]
[1729722919411,5.12068173,2509.1,2509.0,0.3989]
[1729722919611,0.8473,2509.1,2509.0,3.6067]
[1729722920016,3.60661,2509.6,2509.4,0.39883]
[1729722920315,5.32574149,2509.5,2509.4,0.39884]
[1729722920518,5.32574149,2509.5,2509.0,6.7562]
[1729722920923,5.32574149,2509.5,2509.4,0.39884]
[1729722921110,0.8473,2509.5,2509.4,0.39884]
[1729722921414,0.8473,2509.5,2509.4,4.38364]
[1729722921608,0.8473,2509.5,2509.4,4.80814]
[1729722922209,0.8473,2509.5,2509.4,0.82334]
[1729722922917,0.4394,2509.5,2509.4,0.82334]
[1729722923112,0.4053,2509.8,2509.4,4.4093]
[1729722923317,4.0479,2510.0,2509.4,3.5345]
[1729722923514,5.40860464,2509.9,2509.7,0.39878]
[1729722923708,5.40860464,2509.9,2509.4,3.5345]
[1729722923709,4.60454464,2509.9,2509.4,3.5345]
[1729722923910,4.60454464,2509.9,2509.8,0.39877]
[1729722924619,5.00330464,2509.9,2509.7,0.39878]
[1729722924815,4.60454464,2509.9,2509.8,0.39877]
[1729722925814,5.00330464,2509.9,2509.7,0.39878]
[1729722926410,1.44,2509.8,2509.7,1.83878]
[1729722928720,1.8767,2510.0,2509.7,1.8516]
[1729722928921,1.8767,2510.0,2509.8,1.83876]
[1729722929221,4.35041897,2509.9,2509.8,1.83876]
[1729722929420,2.65164,2510.1,2509.8,1.44]
[1729722929621,2.2529,2510.1,2509.9,1.83875]
[1729722929816,4.18986719,2510.0,2509.9,1.83875]
[1729722930322,5.62986719,2510.0,2509.8,2.87176]
[1729722930523,1.44,2509.9,2509.8,1.43176]
[1729722930720,5.62986719,2510.0,2509.8,2.473]
[1729722930921,2.65163,2510.1,2509.9,1.83876]
[1729722931122,1.44,2510.0,2509.9,1.83876]
[1729722931417,6.05580902,2510.0,2509.9,1.83876]
[1729722931622,6.05580902,2510.0,2509.9,0.39876]
[1729722933820,6.05580902,2510.0,2509.8,1.033]
[1729722934021,1.83876,2509.9,2509.8,1.033]
[1729722934414,1.83876,2509.9,2509.7,2.87178]
[1729722934620,0.4338,2509.8,2509.7,2.87178]
[1729722935216,0.83257,2509.8,2509.6,4.6478]
[1729722935417,1.44,2509.7,2509.4,0.4245]
[1729722935627,1.44,2509.7,2509.3,1.83884]
[1729722935628,0.39884,2509.4,2509.3,1.033]
[1729722935920,1.44,2509.5,2509.3,2.87185]
[1729722936126,0.83264,2509.4,2509.3,2.87185]
[1729722936420,0.4338,2509.4,2509.3,2.87185]
[1729722936921,0.4338,2509.4,2509.3,3.27505]
[1729722937629,0.39879,2509.8,2509.6,0.3988]
[1729722937819,1.83879,2509.8,2509.6,1.8388]
[1729722938015,0.4305,2509.7,2509.6,1.8388]
[1729722938215,0.4305,2509.7,2509.6,0.3988]
[1729722938724,0.82929,2509.7,2509.6,1.4318]
[1729722938919,0.4305,2509.7,2509.6,1.4318]
[1729722939325,2.70046,2509.9,2509.7,0.39878]
[1729722939521,1.44,2509.8,2509.7,0.39878]
[1729722940129,2.70046,2509.9,2509.7,0.39878]
[1729722940424,2.3017,2509.9,2509.6,2.473]
[1729722940633,1.44,2510.0,2509.8,1.83877]
[1729722940824,1.44,2510.0,2509.8,1.44]
[1729722940825,0.39876,2509.9,2509.8,1.44]
[1729722941933,0.39877,2509.8,2509.6,5.6808]
[1729722942126,0.39877,2509.8,2509.7,0.39879]
[1729722942326,0.39879,2509.7,2509.6,4.2408]
[1729722942526,2.24349,2509.7,2509.6,3.2078]
[1729722942829,2.24349,2509.7,2509.5,1.43181]
[1729722943027,1.8447,2509.7,2509.5,1.44]
[1729722943234,2.2435,2509.7,2509.5,1.83881]
[1729722943426,0.3988,2509.6,2509.5,1.83881]
[1729722943725,2.2435,2509.7,2509.5,1.83881]
[1729722944827,1.8447,2509.7,2509.5,1.44]
[1729722945130,1.8447,2509.7,2509.5,1.83881]
[1729722945131,2.24349,2509.7,2509.5,1.83881]
[1729722947635,0.3988,2509.6,2509.5,1.83881]
[1729722948038,0.3988,2509.6,2509.5,1.44]
[1729722948241,0.3988,2509.6,2509.5,1.83882]
[1729722950141,2.2435,2509.7,2509.5,1.83882]
[1729722951938,2.2435,2509.7,2509.5,1.44]
[1729722952245,2.2435,2509.7,2509.5,1.8388]
[1729722953333,2.2435,2509.7,2509.5,1.44]
[1729722953539,2.2435,2509.7,2509.6,0.3988]
[1729722956534,0.3988,2509.6,2509.5,1.44]
[1729722956841,0.8533,2509.6,2509.5,1.83882]
[1729722958037,1.2521,2509.6,2509.5,1.44]
[1729722958240,2.6921,2509.6,2509.4,6.48173]
[1729722958734,1.83882,2509.5,2509.4,3.2078]
[1729722959050,0.39884,2509.4,2509.3,0.39884]
[1729722959242,0.39885,2509.4,2509.3,0.39885]
[1729722959434,0.39885,2509.4,2509.3,1.83885]
[1729722960049,6.01174099,2509.5,2509.4,0.39884]
[1729722960241,6.01174099,2509.5,2509.4,1.83884]
[1729722960750,6.01174099,2509.5,2509.4,1.44]
[1729722961047,0.39884,2509.4,2509.3,3.60664]
[1729722962147,5.61291099,2509.5,2509.3,3.2078]
[1729722962345,6.01174099,2509.5,2509.4,0.39884]
[1729722962545,0.39884,2509.4,2509.3,5.04664]
[1729722963748,0.39884,2509.4,2509.3,1.83884]
[1729722963947,0.39884,2509.4,2509.3,0.39885]
[1729722964545,0.39885,2509.3,2509.2,3.60666]
[1729722964854,0.80635,2509.3,2509.2,3.60666]
[1729722965451,0.80635,2509.3,2509.2,3.73140462]
[1729722965655,0.80635,2509.3,2509.2,3.73140541]
[1729722965855,0.80635,2509.3,2509.2,3.2078]
[1729722966155,0.80635,2509.3,2509.2,3.73141812]